Cogmind - Beta 15 @@@ ROGUE MODE // 2025.09.06 @ 15:25:54 Player: MisterClanker Result: Destroyed by Y-45 Defender with Heavy Assault Rifle Performance ------------- Evolutions (2) 1000 Regions Visited (3) 600 Robots Destroyed (36) 180 Value Destroyed (1075) 1075 Prototype IDs (1) 20 Alien Tech Used (0) 0 Bonus (0) 0 TOTAL SCORE: 2875 Bonus ------- None Cogmind --------- Core Integrity 0/550 Matter 237/300 Energy 100/100 System Corruption 0% Temperature Cool (9) Movement Core (50) Location -8/Materials Parts ------- > --- POWER (1) -------- (None) > --- PROPULSION (4) --- (None) > --- UTILITY (3) ------ (None) > --- WEAPON (3) ------- (None) > --- INVENTORY (5) ---- Ion Engine Ion Engine Heat Sink Improved Cooling System Rocket Launcher Peak State ------------ > --- POWER ------------ Ion Engine > --- PROPULSION ------- Aluminum Leg Aluminum Leg Aluminum Leg Aluminum Leg > --- UTILITY ---------- Improved Cooling System Small Storage Unit Medium Insulated Plating > --- WEAPON ----------- Beam Rifle Improved Light Cannon Improved Light Cannon > --- INVENTORY -------- Ion Engine Ion Engine Light Nuclear Core Aluminum Leg Heat Sink Rocket Launcher Rocket Launcher Mining Laser [Rating: 21] Favorites ----------- Power Ion Engine Engine Ion Engine Propulsion Aluminum Leg Leg Aluminum Leg Wheel Wheel Utility Small Storage Unit Device Heat Sink Storage Small Storage Unit Processor Signal Interpreter Protection Light Armor Plating Weapon Improved Light Cannon Energy Gun EM Pulse Gun Ballistic Gun Light Assault Rifle Ballistic Cannon Improved Light Cannon Launcher Rocket Launcher Build | -11 -10 -9 -8 ------- Run | Yrd Mat Mat Mat Slots Evolved 4 | . . 2 2 Power . | . . . . Propulsion 2 | . . 2 . Utility 1 | . . . 1 Weapon 1 | . . . 1 Parts Attached 36 | 6 5 19 6 Power 5 | 1 1 2 1 Engine 5 | 1 1 2 1 Core . | . . . . Reactor . | . . . . Propulsion 8 | 2 1 5 . Treads . | . . . . Leg 7 | 2 1 4 . Wheel 1 | . . 1 . Hover . | . . . . Flight . | . . . . Utility 11 | 1 3 5 2 Device 4 | . 1 2 1 Storage 3 | 1 2 . . Processor 1 | . . 1 . Hackware . | . . . . Protection 3 | . . 2 1 Artifact . | . . . . Weapon 12 | 2 . 7 3 Energy Gun 4 | 1 . 3 . Energy Cannon . | . . . . Ballistic Gun 3 | 1 . . 2 Ballistic Cannon 3 | . . 3 . Launcher 2 | . . 1 1 Special Weapon . | . . . . Impact Weapon . | . . . . Slashing Weapon . | . . . . Piercing Weapon . | . . . . Special Melee Weapon . | . . . . Unidentified Prototypes 1 | . . 1 . Corrupted Parts 1 | . . 1 . System Corruption 1 | . . 1 . Parts Lost 20 | . . 7 13 Power 1 | . . . 1 Propulsion 6 | . . 2 4 Utility 5 | . . 2 3 Weapon 8 | . . 3 5 Highest Loss Streak 12 | . . 2 12 To Critical Strikes . | . . . . Average Backups 7 | 3 7 7 7 Power 2 | . 2 2 2 Propulsion 1 | 2 2 . . Utility . | . . . 1 Weapon 3 | . 2 4 2 Tool/Special . | . . . . Unused Backups 14 | . 5 3 6 Power 4 | . . 1 3 Propulsion 3 | . 3 . . Utility 1 | . . . 1 Weapon 6 | . 2 2 2 Tool/Special . | . . . . Average Slot Usage (%) 95 | . 89 98 82 Engine 11 | . 14 11 8 Leg 38 | . 28 41 28 Device 6 | . 4 6 8 Storage 11 | . 14 11 8 Protection 3 | . . 3 6 Energy Gun 6 | . 14 5 7 Ballistic Gun 3 | . 14 2 . Ballistic Cannon 12 | . . 14 14 Peak Build Rating 21 | 6 8 12 21 Average Rating 11 | 4 6 11 17 On Entrance 6 | . 6 8 12 Naked Turns 12 | . . . 12 Heaviest Build 31 | 11 18 21 31 Greatest Support 40 | 20 20 40 40 Greatest Overweight (x) 3 | 3 . 1 1 Average Overweight (x) . | . . . . Largest Inventory Capacity 10 | 8 10 8 8 Average Capacity 7 | 7 8 8 7 Most Carried 10 | 6 10 8 8 Average Carried 7 | 3 7 7 7 Final Capacity 8 | 8 8 8 5 Final Carried 8 | 6 8 8 5 Class Distribution -------------------- 47% | Mutant 45% | Scavenger-Mutant 7% | Scavenger-Tank Dominant Class ---------------- Mutant | -10/Materials Scavenger-Mutant | -9/Materials Scavenger-Tank | -8/Materials Resources | -11 -10 -9 -8 ----------- Run | Yrd Mat Mat Mat Matter Collected 921 | 189 128 474 130 Remotely . | . . . . Salvage Created 1118 | . 147 642 329 Parts 73 | . 9 44 20 Haulers Intercepted 1 | . . . 1 Recyclers Shooed 4 | . 2 2 . Parts Field Recycled . | . . . . Retrieved Matter . | . . . . Parts Self-Destructed . | . . . . Prevented . | . . . . Kills | -11 -10 -9 -8 ------- Run | Yrd Mat Mat Mat Combat Hostiles Destroyed 30 | . 2 17 11 Guns 11 | . 2 6 3 Cannons 10 | . . 8 2 AOE 8 | . . 2 6 Classes Destroyed 8 | . 2 3 3 Worker 1 | . . 1 . Hauler 1 | . . . 1 Recycler 1 | . . . 1 Watcher 3 | . 2 1 . Swarmer 9 | . . 3 6 Grunt 10 | . 2 6 2 Brawler 1 | . . . 1 Sentry 10 | . . 8 2 Best Kill Streak 7 | . 2 3 7 Combat Bots Only 6 | . 2 3 6 Max Kills in Single Turn 4 | . 1 2 4 Gunslinging . | . . . . Exploded 3 | . . 2 3 Melee . | . . . . Uniques/NPCs Destroyed . | . . . . Combat | -11 -10 -9 -8 -------- Run | Yrd Mat Mat Mat Hostile Shots Fired 272 | . 10 100 162 Missed 71 | . 1 26 44 Hits 201 | . 9 74 118 Projectile 201 | . 9 74 118 Critical Strikes 10 | . . 3 7 Damage Taken 2819 | . 114 1037 1668 Core 761 | . 27 180 554 Absorbed by Shields . | . . . . Regen/Repaired (Parts) 57 | . . 57 . Core Remaining (%) 81 | 100 89 55 . Volleys Fired 89 | . 7 58 24 Largest 3 | . 2 2 3 Hottest 122 | . 60 89 122 Shots Fired 175 | . 13 107 55 Gun 93 | . 13 59 21 Cannon 75 | . . 45 30 Launcher 7 | . . 3 4 Special . | . . . . Kinetic 97 | . 6 57 34 Thermal 27 | . . 10 17 Explosive 7 | . . 3 4 Electromagnetic 44 | . 7 37 . Robot Hit Streak 10 | . 4 8 10 Robot Miss Streak 5 | . 1 5 4 Penetration Max . | . . . . Secondary Targets . | . . . . Shots Hit Robots 107 | . 9 65 33 Core Hits 57 | . 7 29 21 Critical Kills . | . . . . Critical Parts Destroyed . | . . . . Critical Strikes 2 | . . 2 . Blast 1 | . . 1 . Corrupt 1 | . . 1 . Melee Attacks . | . . . . Impact . | . . . . Slashing . | . . . . Piercing . | . . . . Sneak Attacks . | . . . . Combat Hostiles . | . . . . Follow-up Attacks . | . . . . Damage Inflicted 2337 | . 167 1252 918 Guns 700 | . 125 376 199 Cannons 1063 | . . 654 409 Explosions 552 | . 34 208 310 Melee . | . . . . Ramming 22 | . 8 14 . Kinetic 1175 | . 36 705 434 Thermal 294 | . 34 86 174 Explosive 518 | . . 208 310 Electromagnetic 328 | . 89 239 . Impact . | . . . . Slashing . | . . . . Piercing . | . . . . Highest Corruption 3 | . 3 1 . Average Corruption 1 | . 2 1 . Corruption Purged . | . . . . Corruption Blocked . | . . . . Effects 10 | . 3 7 . Message Errors 2 | . . 2 . Matter Fused 3 | . 1 2 . Heat Flow Errors 1 | . . 1 . Energy Discharges 1 | . 1 . . Data Loss (minor) 2 | . 1 1 . Data Loss (major) 1 | . . 1 . Overload Shots . | . . . . Overflow Damage 6 | . . 1 5 Projectiles 6 | . . 1 5 Explosions . | . . . . Melee . | . . . . Knockbacks 7 | . . 5 2 Impact . | . . . . Kinetic 5 | . . 3 2 Secondary 2 | . . 2 . Self-Inflicted Damage 85 | . . 45 40 Shots 2 | . . 1 1 Rammed . | . . . . Targets Rammed 9 | . 3 6 . Kicked 9 | . 3 6 . Crushed . | . . . . Highest Temperature 365 | . 59 365 55 Average Temperature 81 | . 31 93 21 Received Heat Transfer 1086 | . 66 372 648 Siege Activations . | . . . . Martial Activations . | . . . . Shielding Activations . | . . . . Robots Disrupted . | . . . . Combat Hostiles . | . . . . Robots Corrupted 1 | . . 1 . Combat Hostiles 1 | . . 1 . Parts Fried 1 | . . 1 . Impact Corruptions 1 | . . 1 . Robots Melted . | . . . . Combat Hostiles . | . . . . Parts Melted 1 | . . 1 . Heat Transferred 716 | . 50 222 444 Parts Sabotaged . | . . . . Parts Stolen . | . . . . Parts Stripped . | . . . . Power Chain Reactions 1 | . 1 . . Alert | -11 -10 -9 -8 ------- Run | Yrd Mat Mat Mat Maximum Alert Level 1 | . . . 1 Low Security (%) 98 | 100 100 100 84 Level 1 1 | . . . 15 Level 2 . | . . . . Level 3 . | . . . . Level 4 . | . . . . Level 5 . | . . . . High Security . | . . . . Max Security . | . . . . Peak Influence 233 | . 50 139 233 Initial 24 | . . . 24 Average 50 | . 11 55 82 Influence Increases 973 | . 79 581 313 Destroy 0b10 Robot/C 600 | . 40 340 220 Destroy 0b10 Robot/NC 30 | . 10 10 10 Destroy Leader 168 | . 14 102 52 Successful Hack 22 | . . 22 . Disable Machine 75 | . 15 45 15 Destroy Structure 48 | . . 32 16 Lose Combat Pursuer 30 | . . 30 . Influence Decreases 880 | . 79 522 279 Entered New Map 35 | . . . 35 Time Decay 645 | . 79 452 114 Lost Part 200 | . . 70 130 Squads Dispatched 3 | . . . 3 Investigation . | . . . . Extermination . | . . . . Reinforcement . | . . . . Assault . | . . . . Garrison 3 | . . . 3 Intercept . | . . . . Searches Triggered . | . . . . Construction Impeded . | . . . . Haulers Reinforced . | . . . . Active Scanning Responses . | . . . . Cargo Convoy Interrupts . | . . . . Stealth | -11 -10 -9 -8 --------- Run | Yrd Mat Mat Mat Distress Signals 2 | . . 2 . Communications Jammed . | . . . . Distress Signals . | . . . . Times Spotted 40 | . 4 22 14 Peak Tracking Total 6 | . 2 6 6 Tactical Retreats 2 | . . 2 . Traps | -11 -10 -9 -8 ------- Run | Yrd Mat Mat Mat Traps Triggered 3 | . 2 1 . Indirectly . | . . . . Trap Hack Attempts . | . . . . Triggered . | . . . . Disarmed . | . . . . Reprogrammed . | . . . . Reused . | . . . . Traps Extracted . | . . . . Installed . | . . . . Triggered . | . . . . Machines | -11 -10 -9 -8 ---------- Run | Yrd Mat Mat Mat Machines Disabled 5 | . 1 3 1 Max in Single Turn 1 | . 1 1 1 Machines Repaired . | . . . . Machines Dismantled . | . . . . Machines Sabotaged . | . . . . Overloaded Fab Kills . | . . . . Hacking | -11 -10 -9 -8 --------- Run | Yrd Mat Mat Mat Machines Accessed 9 | . 2 7 . Terminals 7 | . 2 5 . Fabricators . | . . . . Repair Stations 2 | . . 2 . Recycling Units . | . . . . Scanalyzers . | . . . . Garrison Access . | . . . . Total Hacks 27 | . 7 20 . Successful 12 | . 5 7 . Failed 14 | . 1 13 . Catastrophic 5 | . . 5 . Database Lockouts 1 | . 1 . . Manual 16 | . 4 12 . Terminals 24 | . 7 17 . Fabricators . | . . . . Repair Stations 3 | . . 3 . Recycling Units . | . . . . Scanalyzers . | . . . . Garrison Access . | . . . . Terminal Hacks 10 | . 5 5 . Record 5 | . 4 1 . Robot Analysis 2 | . 1 1 . Level Access Points 1 | . . 1 . Branch Access Points 2 | . . 2 . Fabricator Hacks . | . . . . Repair Station Hacks 2 | . . 2 . Scan Component 1 | . . 1 . Repair 1 | . . 1 . Recycling Unit Hacks . | . . . . Scanalyzer . | . . . . Garrison Access Hacks . | . . . . Unauthorized Hacks . | . . . . Terminals . | . . . . Fabricators . | . . . . Repair Stations . | . . . . Recycling Units . | . . . . Scanalyzers . | . . . . Garrison Access . | . . . . Data Cores Recovered . | . . . . Used . | . . . . Hacking Detections 8 | . 2 6 . Full Trace Events 1 | . 1 . . Feedback Events . | . . . . Feedback Blocked . | . . . . Robot Schematics Acquired . | . . . . Robots Built . | . . . . Authchips . | . . . . Time . | . . . . Total Robot Build Rating . | . . . . Part Schematics Acquired . | . . . . Parts Built . | . . . . Authchips . | . . . . Time . | . . . . Total Part Build Rating . | . . . . Parts Repaired 1 | . . 1 . Time 26 | . . 26 . Parts Recycled . | . . . . Recycled Matter . | . . . . Retrieved Matter . | . . . . Retrieved Components . | . . . . Parts Scanalyzed . | . . . . Part Schematics Acquired . | . . . . Parts Damaged . | . . . . Bothacking | -11 -10 -9 -8 ------------ Run | Yrd Mat Mat Mat Used RIF Installer . | . . . . Robots Hacked . | . . . . Non-combat . | . . . . Combat . | . . . . Robot Hacks Applied . | . . . . Relay Couplers Released . | . . . . Fabnet Peak Effective % . | . . . . Robots Rewired . | . . . . Allies Hacked . | . . . . Hacks Repelled . | . . . . Allies | -11 -10 -9 -8 -------- Run | Yrd Mat Mat Mat Total Allies . | . . . . Largest Group . | . . . . Highest-Rated Group . | . . . . Highest-Rated Ally . | . . . . Total Orders . | . . . . Ally Attacks . | . . . . Total Damage . | . . . . Kills . | . . . . Allies Corrupted . | . . . . Allies Melted . | . . . . Intel | -11 -10 -9 -8 ------- Run | Yrd Mat Mat Mat Active Infowar (turns) . | . . . . Robot Analysis Total 2 | . 1 1 . Derelict Logs Recovered . | . . . . Drone Launches . | . . . . Drone Recoveries . | . . . . Exploration | -11 -10 -9 -8 ------------- Run | Yrd Mat Mat Mat Turns Passed 2200 | 65 303 1567 265 Spaces Moved 1050 | 41 212 689 108 Core 20 | 14 . . 6 Treads . | . . . . Legs 1029 | 27 212 688 102 Wheels 1 | . . 1 . Hover . | . . . . Flight . | . . . . Fastest Speed 50 | 50 120 95 50 Average Speed 120 | 123 120 120 118 Slowest Speed 200 | 200 120 190 190 Overloaded Moves . | . . . . Propulsion Burnouts . | . . . . Robots Hopped . | . . . . Potential Cave-ins . | . . . . Cave-ins Triggered . | . . . . Exploration Rate (%) 28 | 4 41 55 15 Regions Visited 3 Branch Regions . Pre-discovered Areas . | . . . . Known Exits Taken 1 | . . 1 . Unknown Exits Taken 2 | 1 1 . . Scrap Searched . | . . . . Spaces Dug . | . . . . Terrain Destroyed 63 | . . 46 17 Melee . | . . . . Projectile 2 | . . 1 1 AOE 61 | . . 45 16 Terrain Rammed . | . . . . Walls Destroyed . | . . . . Machines Disabled . | . . . . Actions | -11 -10 -9 -8 --------- Run | Yrd Mat Mat Mat Total 1823 | 52 251 1322 198 Wait 574 | . 7 514 53 Move 1047 | 40 211 688 108 Hop . | . . . . Pick Up 24 | 6 6 11 1 Fast Attach 25 | 6 3 12 4 Attach 9 | . 1 7 1 Detach 6 | . 3 2 1 Swap 15 | . 2 9 4 Drop 25 | . 8 15 2 Fire 89 | . 7 58 24 Melee . | . . . . Ram . | . . . . Kick 9 | . 3 6 . Crush . | . . . . Escape Stasis . | . . . . Rewire . | . . . . Trap . | . . . . Miscellaneous . | . . . . Route ------- -11/Scrapyard -10/Materials -9/Materials (discovered 4 exits: *Mat x3 / Min) -8/Materials History --------- Turn | Location | Event 2 | -11/Scrapyard | Met Revision 17 36 | -11/Scrapyard | Discovered new exit (range 14) 66 | -11/Scrapyard | Entered Materials 134 | -10/Materials | Central database locked down 298 | -10/Materials | Discovered new exit (range 6) 313 | -10/Materials | Build established: Mutant 369 | -10/Materials | Entered another Materials area 369 | -9/Materials | Evolved 2 slots: Propulsion x2 477 | -9/Materials | Identified exit to Mines 1096 | -9/Materials | Discovered new exit (range 14) 1233 | -9/Materials | Repaired Aluminum Leg 1292 | -9/Materials | Build established: Scavenger-Mutant 1859 | -9/Materials | Identified exit to Materials 1936 | -9/Materials | Entered another Materials area 1936 | -8/Materials | Evolved 2 slots: Utility x1, Weapon x1 2181 | -8/Materials | Core integrity fell below 50% 2196 | -8/Materials | Core integrity fell below 20% 2201 | -8/Materials | Destroyed by Y-45 Defender with Heavy Assault Rifle Last Messages --------------- Aluminum Leg destroyed. K-01 Serf collects debris. K-01 Serf destroyed. Critical hit (Burn: +37). Aluminum Leg destroyed. Critical hit (Burn: +37). M-13 Machinist repairs Y-45 Defender. K-01 Serf collects debris. Acquired Lgt. Assault Rifle. M-13 Machinist suffers critical hit (Burn). K-01 Serf collects debris. Acquired Lgt. Assault Rifle. Lgt. Assault Rifle destroyed. Aluminum Leg destroyed. Lgt. Ion Engine destroyed. Beam Rifle destroyed. Sml. Storage Unit destroyed. Lgt. Assault Rifle destroyed. Imp. Cooling System destroyed. Critical hit (Burn: +37). Map ----- +----------------------------------------------------+ | ?????????????????# ####### #????????? | | ?????????????????## ##?????# #????????? | | ??????????????????# #??????### ###????????? | | ??????????????????# #????????# #??????????? | | ??????????????????# #????????# #??????????? | | ??????????????????# #????????# #??????????? | | ??????????????????# #????????# #??????????? | | ????????????????### ###??????# #??????????? | | ????????????????# #??????? #??????????? | | ????????????????# #???????! ??????????? | | ????????######### #??????? ??????????? | | ?????+ #??????? ???????????? | | ????????## #?????????????????????? | | ?????????# """"" ##????????? ??????????? | | ?????????# ""T"" ##??????? #????????? | | ?????????# #??????? #????????? | | ?????????# =*= #?????? #?????????? | | ?????????# =%! ##????? #?????????? | | ?????????# """ """ *%= #???? #?????????? | | ?????????# """""""" !####### #?????????? | | ?????????# """"" =%= +?????????? | | ?????????# %*Y*| #?????????? | | ?????????# ]* #?????????? | | ?????????# %Y #?????????? | | ???????? Y*= m #?????????? | | ????????? ### ## @ ####### #?????????? | | ????????? # #??????????????? | | ????????? ?# % " #??????????????? | | ?????????? ??# "G" #??????????????? | | ?????????? ??## " " #??????????????? | | ??????????? ????# #??????????????? | | ??????????????????# " #??????????????? | | ??????????????????# " """ #??????????????? | | ??????????????????# """"" #??????????????? | | ??????????????????# """"" #??????????????? | | ??????????????????# """ #??????????????? | | ??????????????????# ??? #??????????????? | | ??????????????????# ?????? #??????????????? | | ??????????????????####???????###??????????????? | | ??????????????????????????????????????????????? | | ??????????????????????????????????????????????? | | ??????????????????????????????????????????????? | | ??????????????????????????????????????????????? | | ??????????????????????????????????????????????? | | ??????????????????????????????????????????????? | | ??????????????????????????????????????????????? | | ??????????????????????????????????????????????? | | ??????????????????????????????????????????????? | | ??????????????????????????????????????????????? | | ??????????????????????????????????????????????? | +----------------------------------------------------+ Best States ------------- Heat Dissipation 58 Energy Generation 10 Energy Capacity 250 Matter Stores 300 Matter Capacity 300 Sight Range 16 Terrain Scan Density 10 Armor Coverage 225 Resistance: EM 20 Evasion (%) 55 Item Schematics ----------------- None Robot Schematics ------------------ None Fabricated ------------ Nothing Repaired ---------- Aluminum Leg | 36% | -9/Materials Alien Tech Used ----------------- None Achievements -------------- None Challenges ------------ None Game ------ Seed FactorySpacefoldImmobilizer Manual? 0 Play Time 00:29:51 Cumulative 25.1 hours Start 2025.09.06 @ 14:55:52 End 2025.09.06 @ 15:25:54 Sessions 1 Manual Loads 0 Difficulty Rogue Special Mode None Game No. 29 Rogue 28 Adventurer 1 Explorer 0 Win Type - Total 0 Types 0/0/0/0/0/0/0/0/0/0 Lore% 11 Gallery% 18 Achievement% 19 Wizard Run 0 Options --------- Layout 1 ASCII 1 Keyboard 1 Movement Vi Keybinds 0 Fullscreen 1 Font 24/Smallcaps Map View 50x35 Zoom Use 0% Tactical HUD 0 Map Filters NONE Filters NONE Steam 1 RUN: cd23639c-77f6-4c1b-95d4-33357f44ff96